fUSD/lending_fUSD_20240618
["ID","MTS","AMOUNT","RATE_DAILY","PERIOD"]
[329791067,1718675442745,-800.0,0.0002189,2]
[329791068,1718675442755,-800.0,0.0002189,2]
[329791069,1718675442766,-795.53706699,0.00021896,2]
[329791070,1718675442775,-294.22516719,0.00021899,2]
[329791071,1718675442786,-205.69872205,0.00021899,2]
[329791072,1718675442796,-2000.0,0.000219,7]
[329791073,1718675442805,-460.7955554,0.000219,2]
[329791074,1718675442816,-3399.32061947,0.00021914,2]
[329791075,1718675442826,-10670.919482,0.00021914,2]
[329791076,1718675442837,-27686.30631625,0.00021915,2]
[329791077,1718675442854,-324.39426552,0.00021916,2]
[329791078,1718675442873,-388.0972739,0.00021916,2]
[329791079,1718675442883,-900.0,0.00021917,2]
[329791080,1718675442895,-5775.95740813,0.00021917,2]
[329791081,1718675442906,-395.53779166,0.00021917,2]
[329791082,1718675442918,-500.0,0.00021917,2]
[329791083,1718675442930,-500.0,0.00021917,2]
[329791084,1718675442941,-500.0,0.00021917,2]
[329791085,1718675442953,-195.90639177,0.00021917,2]
[329791086,1718675442963,-500.24068106,0.00021917,2]
[329791087,1718675442972,-500.99175784,0.00021917,2]
[329791088,1718675442982,-502.12874947,0.00021917,2]
[329791089,1718675442991,-590.23312161,0.00021917,2]
[329791090,1718675443000,-502.27405887,0.00021917,2]
[329791091,1718675443010,-504.63411052,0.00021917,2]
[329791092,1718675443021,-509.00211264,0.00021917,2]
[329791093,1718675443031,-502.48138442,0.00021917,2]
[329791094,1718675443042,-568.57399476,0.00021917,2]
[329791095,1718675443052,-500.83059985,0.00021917,2]
[329791096,1718675443062,-502.72685241,0.00021917,2]
[329791097,1718675443072,-501.43270391,0.00021917,2]
[329791098,1718675443082,-591.9758237,0.00021917,2]
[329791099,1718675443093,-502.30612205,0.00021917,2]
[329791100,1718675443104,-502.68561994,0.00021917,2]
[329791101,1718675443124,-504.4562424,0.00021917,2]
[329791102,1718675443134,-513.33793379,0.00021917,2]
[329791103,1718675443144,-502.11376378,0.00021917,2]
[329791104,1718675443155,-500.0,0.00021917,2]
[329791105,1718675443165,-578.42680501,0.00021917,2]
[329791106,1718675443175,-500.0,0.00021917,2]
[329791107,1718675443186,-167.61358511,0.00021917,2]
[329791108,1718675443196,-500.0,0.00021917,2]
[329791109,1718675443205,-500.0,0.00021917,2]
[329791110,1718675443215,-500.0,0.00021917,2]
[329791111,1718675443224,-500.0,0.00021917,2]
[329791112,1718675443235,-500.0,0.00021917,2]
[329791113,1718675443244,-500.0,0.00021917,2]
[329791114,1718675443254,-500.0,0.00021917,2]
[329791115,1718675443264,-500.0,0.00021917,2]
[329791116,1718675443275,-500.0,0.00021917,2]
[329791117,1718675443284,-500.0,0.00021917,2]
[329791118,1718675443294,-500.0,0.00021917,2]
[329791119,1718675443304,-500.0,0.00021917,2]
[329791120,1718675443314,-500.0,0.00021917,2]
[329791121,1718675443324,-500.0,0.00021917,2]
[329791122,1718675443335,-500.0,0.00021917,2]
[329791123,1718675443344,-500.0,0.00021917,2]
[329791124,1718675443354,-500.0,0.00021917,2]
[329791125,1718675443372,-500.0,0.00021917,2]
[329791126,1718675443383,-500.0,0.00021917,2]
[329791127,1718675443393,-500.0,0.00021917,2]
[329791128,1718675443405,-500.0,0.00021917,2]
[329791129,1718675443414,-578.00442741,0.00021917,2]
[329791130,1718675443425,-500.0,0.00021917,2]
[329791131,1718675443435,-614.97,0.00021917,2]
[329791132,1718675443447,-500.0,0.00021917,2]
[329791133,1718675443458,-500.0,0.00021917,2]
[329791134,1718675443468,-500.0,0.00021917,2]
[329791135,1718675443478,-500.0,0.00021917,2]
[329791136,1718675443488,-500.0,0.00021917,2]
[329791137,1718675443498,-523.30880636,0.00021917,2]
[329791138,1718675443508,-1150.17,0.00021917,2]
[329791139,1718675443518,-500.0,0.00021917,2]
[329791140,1718675443528,-500.0,0.00021917,2]
[329791141,1718675443538,-500.0,0.00021917,2]
[329791142,1718675443549,-1207.2,0.00021917,2]
[329791143,1718675443559,-901.69,0.00021917,2]
[329791144,1718675443569,-500.0,0.00021917,2]
[329791150,1718675443579,-500.0,0.00021917,2]
[329791159,1718675443590,-500.0,0.00021917,2]
[329791170,1718675443601,-500.0,0.00021917,2]
[329791178,1718675443616,-500.0,0.00021917,2]
[329791189,1718675443627,-500.0,0.00021917,2]
[329791202,1718675443638,-500.0,0.00021917,2]
[329791212,1718675443649,-677.29,0.00021917,2]
[329791218,1718675443659,-500.0,0.00021917,2]
[329791223,1718675443669,-500.0,0.00021917,2]
[329791228,1718675443680,-500.0,0.00021917,2]
[329791232,1718675443689,-500.0,0.00021917,2]
[329791236,1718675443700,-500.0,0.00021917,2]
[329791240,1718675443710,-500.0,0.00021917,2]
[329791245,1718675443721,-575.54,0.00021917,2]
[329791249,1718675443731,-500.0,0.00021917,2]
[329791253,1718675443741,-500.0,0.00021917,2]
[329791257,1718675443751,-500.0,0.00021917,2]
[329791262,1718675443762,-500.0,0.00021917,2]
[329791266,1718675443772,-500.0,0.00021917,2]
[329791270,1718675443783,-500.0,0.00021917,2]
[329791274,1718675443792,-155.4573445,0.00021917,2]
[329791278,1718675443802,-500.0,0.00021917,2]
[329791282,1718675443812,-500.0,0.00021917,2]
[329791286,1718675443822,-500.0,0.00021917,2]
[329791290,1718675443832,-590.33314191,0.00021917,2]
[329791292,1718675443843,-500.0,0.00021917,2]
[329791295,1718675443854,-908.31,0.00021917,2]
[329791297,1718675443873,-500.0,0.00021917,2]
[329791300,1718675443887,-500.0,0.00021917,2]
[329791303,1718675443897,-500.0,0.00021917,2]
[329791305,1718675443907,-500.0,0.00021917,2]
[329791308,1718675443917,-500.0,0.00021917,2]
[329791310,1718675443927,-732.22,0.00021917,2]
[329791313,1718675443938,-500.0,0.00021917,2]
[329791315,1718675443947,-500.0,0.00021917,2]
[329791318,1718675443958,-500.0,0.00021917,2]
[329791320,1718675443968,-734.12,0.00021917,2]
[329791321,1718675443978,-500.0,0.00021917,2]
[329791324,1718675443988,-500.0,0.00021917,2]
[329791326,1718675443998,-500.0,0.00021917,2]
[329791327,1718675444008,-500.0,0.00021917,2]
[329791328,1718675444019,-869.06,0.00021917,2]
[329791329,1718675444029,-500.0,0.00021917,2]
[329791330,1718675444039,-500.0,0.00021917,2]
[329791331,1718675444049,-360.62174412,0.00021917,2]
[329791332,1718675444059,-500.0,0.00021917,2]
[329791333,1718675444069,-500.0,0.00021917,2]
[329791334,1718675444080,-527.06,0.00021917,2]
[329791335,1718675444090,-936.63,0.00021917,2]
[329791337,1718675444100,-500.0,0.00021917,2]
[329791338,1718675444117,-500.0,0.00021917,2]
[329791339,1718675444127,-511.3280608,0.00021917,2]
[329791340,1718675444137,-500.0,0.00021917,2]
[329791341,1718675444146,-546.40022894,0.00021917,2]
[329791342,1718675444157,-500.0,0.00021917,2]
[329791343,1718675444166,-859.95,0.00021917,2]
[329791344,1718675444176,-500.0,0.00021917,2]
[329791350,1718675444393,-500.0,0.00021917,2]
[329791352,1718675444404,-500.0,0.00021917,2]
[329791354,1718675444416,-500.0,0.00021917,2]
[329791356,1718675444427,-665.43,0.00021917,2]
[329791358,1718675444436,-503.51861196,0.00021917,2]
[329791360,1718675444446,-500.0,0.00021917,2]
[329791362,1718675444456,-672.94,0.00021917,2]
[329791364,1718675444466,-508.92755105,0.00021917,2]
[329791366,1718675444476,-500.0,0.00021917,2]
[329791368,1718675444486,-643.56358961,0.00021917,2]
[329791370,1718675444496,-500.0,0.00021917,2]
[329791372,1718675444506,-610.3,0.00021917,2]
[329791374,1718675444515,-500.0,0.00021917,2]
[329791376,1718675444526,-500.0,0.00021917,2]
[329791378,1718675444535,-500.0,0.00021917,2]
[329791380,1718675444545,-219.37290605,0.00021917,2]
[329791382,1718675444556,-1504.51,0.00021917,2]
[329791384,1718675444565,-500.0,0.00021917,2]
[329791386,1718675444575,-829.7,0.00021917,2]
[329791388,1718675444585,-511.10603626,0.00021917,2]
[329791398,1718675444595,-500.0,0.00021917,2]
[329791406,1718675444607,-648.457353,0.00021917,2]
[329791415,1718675444620,-500.0,0.00021917,2]
[329791426,1718675444631,-500.0,0.00021917,2]
[329791433,1718675444641,-500.0,0.00021917,2]
[329791441,1718675444652,-500.0,0.00021917,2]
[329791452,1718675444662,-500.0,0.00021917,2]
[329791460,1718675444672,-771.1,0.00021917,2]
[329791469,1718675444682,-500.0,0.00021917,2]
[329791477,1718675444692,-500.0,0.00021917,2]
[329791484,1718675444702,-500.0,0.00021917,2]
[329791492,1718675444713,-500.0,0.00021917,2]
[329791500,1718675444723,-527.46270965,0.00021917,2]
[329791507,1718675444733,-1260.32,0.00021917,2]
[329791513,1718675444742,-737.92,0.00021917,2]
[329791519,1718675444752,-519.68205086,0.00021917,2]
[329791527,1718675444765,-500.0,0.00021917,2]
[329791532,1718675444775,-500.0,0.00021917,2]
[329791539,1718675444784,-611.17,0.00021917,2]
[329791541,1718675444794,-500.0,0.00021917,2]
[329791548,1718675444804,-510.37440954,0.00021917,2]
[329791552,1718675444813,-500.0,0.00021917,2]
[329791557,1718675444823,-1255.95,0.00021917,2]
[329791559,1718675444833,-640.53,0.00021917,2]
[329791560,1718675444843,-500.0,0.00021917,2]
[329791563,1718675444863,-500.0,0.00021917,2]
[329791566,1718675444873,-735.11,0.00021917,2]
[329791569,1718675444883,-500.0,0.00021917,2]
[329791572,1718675444894,-517.11351397,0.00021917,2]
[329791575,1718675444904,-500.0,0.00021917,2]
[329791576,1718675444914,-618.37,0.00021917,2]
[329791577,1718675444925,-500.0,0.00021917,2]
[329791580,1718675444936,-500.0,0.00021917,2]
[329791581,1718675444946,-648.20471746,0.00021917,2]
[329791584,1718675444956,-500.0,0.00021917,2]
[329791586,1718675444966,-500.0,0.00021917,2]
[329791587,1718675444977,-654.93,0.00021917,2]
[329791590,1718675444987,-500.0,0.00021917,2]
[329791592,1718675444997,-500.0,0.00021917,2]
[329791593,1718675445007,-500.0,0.00021917,2]
[329791595,1718675445016,-500.0,0.00021917,2]
[329791597,1718675445026,-809.01,0.00021917,2]
[329791599,1718675445036,-500.0,0.00021917,2]
[329791601,1718675445047,-513.12213485,0.00021917,2]
[329791603,1718675445056,-500.0,0.00021917,2]
[329791605,1718675445066,-438.56093669,0.00021917,2]
[329791607,1718675445076,-609.25,0.00021917,2]
[329791609,1718675445086,-500.0,0.00021917,2]
[329791610,1718675445096,-579.81,0.00021917,2]
[329791611,1718675445106,-500.0,0.00021917,2]
[329791612,1718675445122,-1209.79,0.00021917,2]
[329791613,1718675445132,-500.0,0.00021917,2]
[329791614,1718675445141,-659.48,0.00021917,2]
[329791615,1718675445151,-500.0,0.00021917,2]
[329791616,1718675445162,-571.14,0.00021917,2]
[329791617,1718675445173,-500.0,0.00021917,2]
[329791618,1718675445185,-809.43,0.00021917,2]
[329791619,1718675445195,-500.0,0.00021917,2]
[329791620,1718675445206,-1061.15,0.00021917,2]
[329791621,1718675445216,-500.0,0.00021917,2]
[329791622,1718675445225,-509.51498648,0.00021917,2]
[329791623,1718675445235,-806.56,0.00021917,2]
[329791624,1718675445244,-500.0,0.00021917,2]
[329791625,1718675445255,-500.0,0.00021917,2]
[329791626,1718675445265,-500.0,0.00021917,2]
[329791627,1718675445275,-500.0,0.00021917,2]
[329791628,1718675445284,-527.21925936,0.00021917,2]
[329791629,1718675445294,-500.0,0.00021917,2]
[329791630,1718675445304,-500.0,0.00021917,2]
[329791631,1718675445314,-789.21,0.00021917,2]
[329791632,1718675445324,-500.0,0.00021917,2]
[329791633,1718675445334,-500.0,0.00021917,2]
[329791634,1718675445344,-969.04,0.00021917,2]
[329791635,1718675445354,-502.62108145,0.00021917,2]
[329791636,1718675445369,-697.87,0.00021917,2]
[329791637,1718675445378,-500.0,0.00021917,2]
[329791638,1718675445390,-1018.72,0.00021917,2]
[329791639,1718675445400,-506.5375325,0.00021917,2]
[329791640,1718675445410,-500.0,0.00021917,2]
[329791641,1718675445419,-902.51,0.00021917,2]
[329791642,1718675445429,-500.0,0.00021917,2]
[329791643,1718675445438,-500.0,0.00021917,2]
[329791644,1718675445448,-440.01848348,0.00021917,2]
[329791645,1718675445458,-570.2,0.00021917,2]
[329791646,1718675445469,-506.59664617,0.00021917,2]
[329791647,1718675445479,-635.94,0.00021917,2]
[329791648,1718675445489,-500.0,0.00021917,2]
[329791649,1718675445499,-510.03159291,0.00021917,2]
[329791650,1718675445508,-500.0,0.00021917,2]
[329791651,1718675445518,-500.0,0.00021917,2]
[329791652,1718675445528,-500.0,0.00021917,2]
[329791653,1718675445538,-500.0,0.00021917,2]
[329791654,1718675445547,-582.94,0.00021917,2]
[329791655,1718675445558,-500.0,0.00021917,2]
[329791656,1718675445568,-500.0,0.00021917,2]
[329791657,1718675445579,-633.54,0.00021917,2]
[329791658,1718675445589,-500.0,0.00021917,2]
[329791659,1718675445600,-500.0,0.00021917,2]
[329791660,1718675445614,-591.77,0.00021917,2]
[329791661,1718675445625,-500.0,0.00021917,2]
[329791662,1718675445636,-614.44,0.00021917,2]
[329791663,1718675445648,-500.0,0.00021917,2]
[329791664,1718675445659,-500.0,0.00021917,2]
[329791665,1718675445670,-500.0,0.00021917,2]
[329791666,1718675445683,-500.0,0.00021917,2]
[329791667,1718675445694,-500.0,0.00021917,2]
[329791668,1718675445705,-500.0,0.00021917,2]
[329791669,1718675445715,-503.31473728,0.00021917,2]
[329791670,1718675445725,-502.48572828,0.00021917,2]
[329791671,1718675445736,-513.64,0.00021917,2]
[329791672,1718675445745,-500.0,0.00021917,2]
[329791673,1718675445755,-500.0,0.00021917,2]
[329791674,1718675445765,-500.0,0.00021917,2]
[329791675,1718675445774,-500.0,0.00021917,2]
[329791676,1718675445784,-500.0,0.00021917,2]
[329791677,1718675445794,-500.0,0.00021917,2]
[329791678,1718675445803,-1037.29,0.00021917,2]
[329791679,1718675445813,-500.0,0.00021917,2]
[329791680,1718675445823,-500.0,0.00021917,2]
[329791681,1718675445832,-507.44351938,0.00021917,2]
[329791682,1718675445842,-902.61,0.00021917,2]
[329791683,1718675445859,-780.73,0.00021917,2]
[329791684,1718675445871,-512.58277511,0.00021917,2]
[329791685,1718675445882,-500.0,0.00021917,2]
[329791686,1718675445894,-500.0,0.00021917,2]
[329791687,1718675445904,-500.0,0.00021917,2]
[329791688,1718675445914,-1069.82,0.00021917,2]
[329791689,1718675445924,-653.43,0.00021917,2]
[329791690,1718675445934,-503.49483145,0.00021917,2]
[329791691,1718675445945,-741.15,0.00021917,2]
[329791692,1718675445955,-1242.03,0.00021917,2]
[329791693,1718675445965,-502.63263001,0.00021917,2]
[329791694,1718675445974,-593.03252862,0.00021917,2]
[329791695,1718675445984,-500.0,0.00021917,2]
[329791696,1718675445993,-500.0,0.00021917,2]
[329791697,1718675446003,-500.0,0.00021917,2]
[329791698,1718675446013,-1267.55,0.00021917,2]
[329791699,1718675446024,-676.8,0.00021917,2]
[329791700,1718675446034,-500.0,0.00021917,2]
[329791701,1718675446044,-500.0,0.00021917,2]
[329791702,1718675446054,-500.0,0.00021917,2]
[329791703,1718675446064,-500.0,0.00021917,2]
[329791704,1718675446074,-500.0,0.00021917,2]
[329791705,1718675446084,-871.54,0.00021917,2]
[329791706,1718675446094,-500.0,0.00021917,2]
[329791707,1718675446104,-2223.39,0.00021917,2]
[329791708,1718675446120,-501.06673334,0.00021917,2]
[329791709,1718675446130,-500.0,0.00021917,2]
[329791710,1718675446144,-500.0,0.00021917,2]
[329791711,1718675446156,-500.0,0.00021917,2]
[329791712,1718675446166,-500.0,0.00021917,2]
[329791713,1718675446176,-500.0,0.00021917,2]
[329791714,1718675446187,-500.0,0.00021917,2]
[329791715,1718675446197,-500.0,0.00021917,2]
[329791716,1718675446207,-907.41,0.00021917,2]
[329791717,1718675446216,-667.93,0.00021917,2]
[329791718,1718675446226,-500.0,0.00021917,2]
[329791719,1718675446236,-500.0,0.00021917,2]
[329791720,1718675446246,-917.45,0.00021917,2]
[329791721,1718675446256,-500.0,0.00021917,2]
[329791722,1718675446266,-639.26,0.00021917,2]
[329791723,1718675446275,-1118.16,0.00021917,2]
[329791724,1718675446285,-500.0,0.00021917,2]
[329791725,1718675446295,-500.0,0.00021917,2]
[329791726,1718675446304,-500.0,0.00021917,2]
[329791727,1718675446314,-517.91,0.00021917,2]
[329791728,1718675446323,-594.17,0.00021917,2]
[329791729,1718675446333,-500.0,0.00021917,2]
[329791730,1718675446343,-744.28,0.00021917,2]
[329791731,1718675446354,-500.0,0.00021917,2]
[329791734,1718675446371,-587.88,0.00021917,2]
[329791735,1718675446381,-500.0,0.00021917,2]
[329791738,1718675446391,-500.0,0.00021917,2]
[329791741,1718675446401,-500.0,0.00021917,2]
[329791744,1718675446412,-500.0,0.00021917,2]
[329791746,1718675446422,-500.0,0.00021917,2]
[329791748,1718675446431,-305.05,0.00021917,2]
[329791750,1718675446441,-893.64,0.00021917,2]
[329791752,1718675446451,-574.85,0.00021917,2]
[329791754,1718675446460,-500.0,0.00021917,2]
[329791756,1718675446470,-500.0,0.00021917,2]
[329791758,1718675446480,-500.0,0.00021917,2]
[329791759,1718675446491,-500.0,0.00021917,2]
[329791761,1718675446502,-500.0,0.00021917,2]
[329791763,1718675446511,-500.0,0.00021917,2]
[329791765,1718675446521,-500.0,0.00021917,2]
[329791767,1718675446531,-602.96,0.00021917,2]
[329791769,1718675446541,-500.0,0.00021917,2]
[329791771,1718675446552,-539.59020426,0.00021917,2]
[329791773,1718675446562,-500.0,0.00021917,2]
[329791775,1718675446572,-1188.11,0.00021917,2]
[329791777,1718675446582,-375.9609395,0.00021917,2]
[329791779,1718675446593,-500.0,0.00021917,2]
[329791781,1718675446603,-509.72426846,0.00021917,2]
[329791782,1718675446621,-500.0,0.00021917,2]
[329791784,1718675446631,-196.01617987,0.00021917,2]
[329791786,1718675446641,-967.52,0.00021917,2]
[329791788,1718675446652,-500.0,0.00021917,2]
[329791790,1718675446663,-324.96899428,0.00021917,2]
[329791792,1718675446673,-763.35,0.00021917,2]
[329791794,1718675446683,-490.04718099,0.00021917,2]
[329791796,1718675446694,-529.87,0.00021917,2]
[329791798,1718675446704,-500.0,0.00021917,2]
[329791800,1718675446714,-500.0,0.00021917,2]
[329791802,1718675446724,-500.0,0.00021917,2]
[329791804,1718675446735,-1202.93,0.00021917,2]
[329791806,1718675446745,-505.14831602,0.00021917,2]
[329791808,1718675446754,-3698.49,0.00021917,2]
[329791810,1718675446764,-505.36307726,0.00021917,2]
[329791812,1718675446774,-500.0,0.00021917,2]
[329791814,1718675446784,-500.0,0.00021917,2]
[329791816,1718675446794,-605.24,0.00021917,2]
[329791818,1718675446804,-834.27,0.00021917,2]
[329791820,1718675446814,-829.14,0.00021917,2]
[329791821,1718675446823,-500.0,0.00021917,2]
[329791823,1718675446833,-517.51942443,0.00021917,2]
[329791825,1718675446842,-24636.89,0.00021917,2]
[329791827,1718675446861,-500.0,0.00021917,2]
[329791829,1718675446875,-780.74,0.00021917,2]
[329791830,1718675446885,-500.0,0.00021917,2]
[329791831,1718675446898,-749.62,0.00021917,2]
[329791832,1718675446909,-531.48910221,0.00021917,2]
[329791833,1718675446919,-842.16,0.00021917,2]
[329791835,1718675446928,-500.0,0.00021917,2]
[329791836,1718675446938,-169.57361528,0.00021917,2]
[329791838,1718675446949,-188.818132,0.00021917,2]
[329791840,1718675446959,-507.12789571,0.00021917,2]
[329791841,1718675446969,-2314.12,0.00021917,2]
[329791842,1718675446979,-592.5,0.00021917,2]
[329791843,1718675447045,-500.0,0.00021917,2]
[329791844,1718675447055,-500.0,0.00021917,2]
[329791845,1718675447067,-500.0,0.00021917,2]
[329791846,1718675447076,-500.0,0.00021917,2]
[329791847,1718675447086,-500.0,0.00021917,2]
[329791848,1718675447095,-1107.38,0.00021917,2]
[329791849,1718675447105,-500.0,0.00021917,2]
[329791850,1718675447122,-503.6463559,0.00021917,2]
[329791851,1718675447132,-500.0,0.00021917,2]
[329791852,1718675447141,-2294.88,0.00021917,2]
[329791853,1718675447151,-2383.72,0.00021917,2]
[329791854,1718675447160,-537.66,0.00021917,2]
[329791855,1718675447170,-500.0,0.00021917,2]
[329791856,1718675447179,-2260.39,0.00021917,2]
[329791857,1718675447189,-225.14732867,0.00021917,2]
[329791858,1718675447198,-500.0,0.00021917,2]
[329791859,1718675447208,-397.13509641,0.00021917,2]
[329791860,1718675447218,-500.0,0.00021917,2]
[329791861,1718675447227,-500.0,0.00021917,2]
[329791862,1718675447237,-500.0,0.00021917,2]
[329791863,1718675447247,-500.0,0.00021917,2]
[329791864,1718675447256,-500.0,0.00021917,2]
[329791865,1718675447266,-1318.38,0.00021917,2]
[329791866,1718675447276,-681.59,0.00021917,2]
[329791867,1718675447285,-1261.74,0.00021917,2]
[329791868,1718675447295,-4097.48,0.00021917,2]
[329791869,1718675447304,-1091.72,0.00021917,2]
[329791870,1718675447314,-500.0,0.00021917,2]
[329791871,1718675447324,-500.0,0.00021917,2]
[329791872,1718675447334,-1060.07,0.00021917,2]
[329791873,1718675447344,-652.21,0.00021917,2]
[329791874,1718675447354,-721.32,0.00021917,2]
[329791876,1718675447371,-506.07414331,0.00021917,2]
[329791877,1718675447382,-500.0,0.00021917,2]
[329791879,1718675447394,-498.05760835,0.00021917,2]
[329791881,1718675447403,-3884.72,0.00021917,2]
[329791882,1718675447413,-1348.67,0.00021917,2]
[329791885,1718675447423,-3205.91,0.00021917,2]
[329791886,1718675447432,-28067.37038223,0.00021917,2]
[329791890,1718675447464,-372.53961777,0.00021917,2]
[329791891,1718675447474,-206.46552139,0.00021917,2]
[329791892,1718675447484,-577.95,0.00021917,2]
[329791893,1718675447493,-699.15,0.00021917,2]
[329791894,1718675447503,-522.26,0.00021917,2]
[329791895,1718675447512,-500.0,0.00021917,2]
[329791896,1718675447522,-1433.52,0.00021917,2]
[329791897,1718675447531,-516.51829719,0.00021917,2]
[329791898,1718675447541,-648.76,0.00021917,2]
[329791899,1718675447550,-979.39,0.00021917,2]
[329791900,1718675447559,-50.04445237,0.00021917,2]
[329791901,1718675447572,-449.95554763,0.00021917,2]
[329791902,1718675447581,-672.31,0.00021917,2]
[329791903,1718675447591,-500.0,0.00021917,2]
[329791904,1718675447601,-2052.90484464,0.00021917,2]
[329791905,1718675447618,-330.025,0.00021917,2]
[329791906,1718675447630,-375.35,0.00021917,2]
[329791907,1718675447641,-1419.13015536,0.00021917,2]
[329791908,1718675447651,-500.0,0.00021917,2]
[329791909,1718675447660,-500.0,0.00021917,2]
[329791910,1718675447670,-810.8,0.00021917,2]
[329791911,1718675447680,-26372.57,0.00021917,2]
[329791912,1718675447690,-500.0,0.00021917,2]
[329791913,1718675447699,-500.0,0.00021917,2]
[329791914,1718675447709,-500.0,0.00021917,2]
[329791915,1718675447719,-500.0,0.00021917,2]
[329791916,1718675447728,-264.49375558,0.00021917,2]
[329791917,1718675447738,-512.79494364,0.00021917,2]
[329791918,1718675447749,-865.94,0.00021917,2]
[329791919,1718675447758,-1867.47,0.00021917,2]
[329791920,1718675447768,-500.0,0.00021917,2]
[329791921,1718675447778,-506.05145307,0.00021917,2]
[329791922,1718675447788,-734.98,0.00021917,2]
[329791923,1718675447798,-500.0,0.00021917,2]
[329791924,1718675447808,-500.0,0.00021917,2]
[329791925,1718675447818,-1156.32,0.00021917,2]
[329791926,1718675447828,-524.96,0.00021917,2]
[329791927,1718675447837,-500.0,0.00021917,2]
[329791928,1718675447849,-968.78,0.00021917,2]
[329791929,1718675447860,-500.0,0.00021917,2]
[329791930,1718675447872,-500.0,0.00021917,2]
[329791931,1718675447883,-12789.25,0.00021917,2]
[329791932,1718675447896,-438.85595837,0.00021917,2]
[329791933,1718675447906,-1651.88,0.00021917,2]
[329791934,1718675447915,-747.67,0.00021917,2]
[329791935,1718675447925,-3368.25,0.00021917,2]
[329791936,1718675447935,-500.0,0.00021917,2]
[329791937,1718675447946,-555.07,0.00021917,2]
[329791938,1718675447956,-507.18127464,0.00021917,2]
[329791939,1718675447965,-500.0,0.00021917,2]
[329791940,1718675447975,-500.0,0.00021917,2]
[329791941,1718675447985,-505.60205868,0.00021917,2]
[329791942,1718675447994,-500.0,0.00021917,2]
[329791943,1718675448004,-502.03277866,0.00021917,2]
[329791944,1718675448016,-500.0,0.00021917,2]
[329791945,1718675448026,-1268.42,0.00021917,2]
[329791946,1718675448035,-500.0,0.00021917,2]
[329791947,1718675448045,-45.7447984,0.00021917,2]
[329791948,1718675448059,-3106.3052016,0.00021917,2]
[329791949,1718675448068,-500.0,0.00021917,2]
[329791950,1718675448078,-500.0,0.00021917,2]
[329791951,1718675448088,-520.33471828,0.00021917,2]
[329791952,1718675448097,-500.0,0.00021917,2]
[329791953,1718675448106,-9731.39,0.00021917,2]
[329791954,1718675448124,-6929.31,0.00021917,2]
[329791955,1718675448133,-526.13,0.00021917,2]
[329791956,1718675448143,-500.0,0.00021917,2]
[329791957,1718675448153,-2425.74,0.00021917,2]
[329791958,1718675448162,-1140.19,0.00021917,2]
[329791959,1718675448172,-172.19826565,0.00021917,2]
[329791960,1718675448182,-500.0,0.00021917,2]
[329791961,1718675448192,-1482.58,0.00021917,2]
[329791962,1718675448202,-500.0,0.00021917,2]
[329791963,1718675448213,-500.0,0.00021917,2]
[329791964,1718675448223,-2827.99,0.00021917,2]
[329791965,1718675448233,-533.6,0.00021917,2]
[329791966,1718675448243,-504.55812689,0.00021917,2]